bitfinex/quotes_ETHUSD_20230105
["timestamp","ask_amount","ask_price","bid_price","bid_amount"]
[1672920251337,0.00146589,1255.2,1255.1,106.41449058]
[1672920251554,0.00146589,1255.2,1255.1,110.37056668]
[1672920251904,0.15763958,1255.8,1255.3,23.89713]
[1672920252115,0.5977,1255.7,1255.5,7.96495]
[1672920252306,0.5977,1255.7,1255.5,8.00713925]
[1672920252998,0.5977,1255.7,1255.5,15.97208925]
[1672920253212,0.5977,1255.7,1255.5,8.00713925]
[1672920253467,0.5977,1255.7,1255.5,11.0987661]
[1672920253984,0.5977,1255.7,1255.5,19.0637161]
[1672920254390,0.5977,1255.7,1255.5,3.1338161]
[1672920254619,16.52554,1255.7,1255.4,19.4509685]
[1672920254837,8.56547,1255.7,1255.4,19.4509685]
[1672920256262,0.6017,1255.7,1255.4,27.4165485]
[1672920256646,0.5977,1255.7,1255.4,27.4165485]
[1672920257440,16.5253,1255.7,1255.4,19.4509685]
[1672920257650,0.6017,1255.7,1255.4,31.7073483]
[1672920258014,24.70759958,1255.8,1255.4,23.7417683]
[1672920258155,24.64559958,1255.8,1255.4,31.7073483]
[1672920258365,24.64559958,1255.8,1255.4,23.7417683]
[1672920259416,24.69559958,1255.8,1255.4,23.7417683]
[1672920260471,24.69559958,1255.8,1255.4,7.8115483]
[1672920260684,24.69559958,1255.8,1255.4,11.4862585]
[1672920260930,24.69559958,1255.8,1255.4,3.5207485]
[1672920261114,24.69559958,1255.8,1255.4,3.47855925]
[1672920261473,24.64559958,1255.8,1255.4,3.47855925]
[1672920261644,24.64559958,1255.8,1255.4,11.44412925]
[1672920261840,24.64559958,1255.8,1255.4,11.4863185]
[1672920262047,24.64559958,1255.8,1255.4,3.5207485]
[1672920262259,3.5,1255.7,1255.4,3.0]
[1672920262475,15.92862,1255.6,1255.4,3.0]
[1672920262721,23.89693,1255.6,1255.4,3.0]
[1672920262933,28.241164,1255.6,1255.4,3.0]
[1672920263256,28.241164,1255.6,1255.3,3.04218925]
[1672920263408,28.241164,1255.6,1255.3,3.0]
[1672920263617,23.89693,1255.6,1255.3,3.0]
[1672920270049,16.16034,1255.5,1255.3,3.0]
[1672920270247,0.234,1255.5,1255.3,3.0]
[1672920270456,8.19504,1255.5,1255.3,3.0]
[1672920270703,8.19904,1255.5,1255.3,3.0]
[1672920271294,16.16408,1255.5,1255.3,3.0]
[1672920273210,24.12912,1255.5,1255.3,3.0]
[1672920273411,27.344663,1255.5,1255.3,3.0]
[1672920273982,27.344663,1255.5,1255.2,17.19618925]
[1672920274191,27.942463,1255.5,1255.2,17.19618925]
[1672920275857,3.5,1255.4,1255.2,17.19618925]
[1672920276028,19.43161,1255.4,1255.2,17.19618925]
[1672920276242,7.96966,1255.4,1255.2,17.19618925]
[1672920276775,17.97240461,1255.4,1255.2,8.14438925]
[1672920278663,10.00664461,1255.4,1255.2,8.14438925]
[1672920281307,17.97240461,1255.4,1255.2,8.14438925]
[1672920282444,25.93816461,1255.4,1255.2,8.14438925]
[1672920282658,10.00664461,1255.4,1255.2,8.14438925]
[1672920283013,17.97222461,1255.4,1255.2,8.14438925]
[1672920283396,25.93780461,1255.4,1255.2,8.14438925]
[1672920284230,25.93550457,1255.4,1255.2,8.14438925]
[1672920286491,0.23,1255.3,1255.2,0.04218925]
[1672920286662,24.12866,1255.3,1255.2,3.0]
[1672920287019,24.13266,1255.3,1255.1,3.2139585]
[1672920287225,16.16644,1255.3,1255.1,3.17176925]
[1672920289013,24.13266,1255.3,1255.1,3.17176925]
[1672920289171,16.16644,1255.3,1255.1,3.17176925]
[1672920290057,24.13266,1255.3,1255.1,3.17176925]
[1672920290236,16.16644,1255.3,1255.1,3.17176925]
[1672920290446,24.13266,1255.3,1255.1,3.17176925]
[1672920290658,16.16644,1255.3,1255.1,3.17176925]
[1672920295818,15.93644,1255.3,1255.1,3.17176925]
[1672920296032,0.004,1255.3,1255.2,9.89040925]
[1672920296309,5.0,1255.4,1255.2,4.9657485]
[1672920296446,0.05,1255.3,1255.2,4.92355925]
[1672920296655,0.05,1255.3,1255.2,6.77916792]
[1672920296862,0.05,1255.3,1255.2,6.82135717]
[1672920297247,0.6479,1255.3,1255.2,12.9325985]
[1672920297599,0.05,1255.3,1255.2,12.9325985]
[1672920298484,0.5979,1255.4,1255.2,12.9325985]
[1672920298859,0.5979,1255.4,1255.2,3.5207485]
[1672920299232,0.5979,1255.4,1255.2,11.44538925]
[1672920299442,0.5979,1255.4,1255.2,19.4544285]
[1672920300016,0.5979,1255.4,1255.2,11.4875785]
[1672920300658,8.56349,1255.4,1255.2,11.4875785]
[1672920301025,8.56749,1255.4,1255.2,11.4875785]
[1672920301189,7.96959,1255.4,1255.2,11.4875785]
[1672920301607,0.004,1255.4,1255.2,11.4875785]
[1672920301813,0.23,1255.4,1255.2,20.48262395]
[1672920302041,0.23,1255.4,1255.2,28.44947395]
[1672920302434,0.05,1255.4,1255.2,28.44947395]
[1672920302665,8.9341,1255.5,1255.2,28.44947395]
[1672920304169,8.3363,1255.5,1255.2,32.09779188]
[1672920304487,8.3363,1255.5,1255.2,28.44947395]
[1672920309300,0.004,1255.5,1255.3,3.5]
[1672920309488,24.49556,1255.6,1255.3,11.46597]
[1672920309701,24.49556,1255.6,1255.3,11.50815925]
[1672920310645,0.6018,1255.6,1255.4,6.64901124]
[1672920310839,0.15363958,1255.8,1255.5,27.39485]
[1672920311053,5.0,1255.6,1255.5,31.08395987]
[1672920311270,5.004,1255.6,1255.5,27.43703925]
[1672920311498,5.004,1255.6,1255.5,31.67615813]
[1672920311703,0.004,1255.6,1255.5,32.15471738]
[1672920311932,0.75133958,1255.8,1255.5,32.15471738]
[1672920312730,0.80133958,1255.8,1255.5,32.15471738]
[1672920313699,0.20363958,1255.8,1255.5,32.15471738]
[1672920314053,0.20363958,1255.8,1255.5,28.65471738]
[1672920315016,0.15363958,1255.8,1255.5,28.65471738]
[1672920317105,0.20363958,1255.8,1255.5,28.65471738]
[1672920318532,0.20363958,1255.8,1255.5,36.28026969]
[1672920318736,0.20363958,1255.8,1255.7,23.89104]
[1672920318988,0.15363958,1255.8,1255.7,23.93322925]
[1672920319180,0.15363958,1255.8,1255.7,26.38313318]
[1672920319391,0.15363958,1255.8,1255.7,26.86169243]
[1672920322523,0.15363958,1255.8,1255.7,10.93433243]
[1672920322718,0.15363958,1255.8,1255.7,8.4844285]
[1672920323931,0.15363958,1255.8,1255.7,16.4481085]
[1672920324164,0.15363958,1255.8,1255.7,8.4844285]
[1672920325039,0.15363958,1255.8,1255.7,24.4117885]
[1672920325268,0.15363958,1255.8,1255.7,16.4481085]
[1672920325471,0.15363958,1255.8,1255.7,19.68568735]
[1672920333006,0.15363958,1255.8,1255.7,27.64936735]
[1672920333578,0.15363958,1255.8,1255.7,27.6469452]
[1672920333903,0.15363958,1255.8,1255.7,19.6832652]
[1672920334955,0.15363958,1255.8,1255.7,27.6469452]
[1672920335789,0.15363958,1255.8,1255.7,0.5207485]
[1672920336020,0.15363958,1255.8,1255.7,0.47855925]
[1672920337167,0.15363958,1255.8,1255.6,31.52309925]
[1672920337404,0.15363958,1255.8,1255.6,27.54822876]
[1672920338211,0.15363958,1255.8,1255.6,35.99109801]
[1672920338424,0.15363958,1255.8,1255.6,43.96526172]
[1672920339573,8.08257294,1255.9,1255.6,43.96526172]
[1672920339782,8.03057294,1255.9,1255.6,43.96526172]
[1672920341680,23.95545294,1255.9,1255.6,7.63148925]
[1672920342656,23.95545294,1255.9,1255.7,3.0]
[1672920344197,31.59466491,1255.9,1255.6,0.04218925]
[1672920344410,3.5,1255.7,1255.3,48.22818925]
[1672920344620,23.89332,1255.6,1255.3,17.93818925]
[1672920344950,23.89732,1255.6,1255.3,17.93818925]
[1672920345321,15.93288,1255.6,1255.3,17.93818925]
[1672920345832,0.004,1255.6,1255.3,17.93818925]
[1672920346044,8.0178,1255.7,1255.4,3.0]
[1672920346400,3.73,1255.6,1255.4,3.0]
[1672920346726,0.23,1255.6,1255.4,3.0]
[1672920347146,8.19438,1255.6,1255.4,3.0]
[1672920347382,8.19838,1255.6,1255.4,3.0]
[1672920348154,8.19832,1255.6,1255.4,3.0]
[1672920348362,16.16264,1255.6,1255.5,0.70206232]
[1672920351457,8.19832,1255.6,1255.5,0.70206232]
[1672920355095,8.19614693,1255.6,1255.5,0.70206232]
[1672920355896,16.16046693,1255.6,1255.5,0.70206232]
[1672920357780,24.12478693,1255.6,1255.5,0.70206232]
[1672920358026,27.33983362,1255.6,1255.5,0.70206232]
[1672920361273,27.33722135,1255.6,1255.5,0.70206232]
[1672920361439,0.22921466,1255.6,1255.5,9.97901232]
[1672920361653,0.22521466,1255.6,1255.5,10.02120157]
[1672920361895,45.1847,1255.8,1255.5,10.02120157]
[1672920362265,11.51378,1255.7,1255.5,0.74425157]
[1672920362482,19.48156,1255.7,1255.5,0.70206232]
[1672920362671,27.44534,1255.7,1255.5,0.70206232]
[1672920363331,0.23,1255.6,1255.5,0.70206232]
[1672920366333,8.19431,1255.6,1255.5,0.70206232]
[1672920366555,8.19831,1255.6,1255.5,0.70206232]
[1672920371166,16.16262,1255.6,1255.5,0.70206232]
[1672920371994,8.19831,1255.6,1255.5,0.70206232]
[1672920377409,0.234,1255.6,1255.5,0.70206232]
[1672920377558,0.23,1255.6,1255.5,0.70206232]
[1672920378984,8.19431,1255.6,1255.5,0.70206232]
[1672920379141,8.19831,1255.6,1255.5,0.70206232]
[1672920380399,0.234,1255.6,1255.5,16.63196232]
[1672920380610,0.23,1255.6,1255.5,8.70920157]
[1672920380871,7.96431,1255.6,1255.5,0.74425157]
[1672920381056,8.19831,1255.6,1255.5,0.70206232]
[1672920382178,0.234,1255.6,1255.5,0.70206232]
[1672920382465,0.23,1255.6,1255.5,0.70206232]
[1672920382604,8.19431,1255.6,1255.5,0.70206232]
[1672920382974,8.19831,1255.6,1255.5,0.70206232]
[1672920383553,16.16262,1255.6,1255.5,0.70206232]
[1672920383801,24.12693,1255.6,1255.5,0.70206232]
[1672920383995,24.12693,1255.6,1255.5,0.69993336]
[1672920384204,16.16262,1255.6,1255.5,0.69993336]
[1672920387791,16.16262,1255.6,1255.5,3.69993336]
[1672920388811,8.19831,1255.6,1255.5,3.69993336]
[1672920389217,16.16262,1255.6,1255.5,3.69993336]
[1672920389907,27.342199,1255.6,1255.5,3.69993336]
[1672920391166,27.342199,1255.6,1255.5,0.69993336]
[1672920395090,32.342199,1255.6,1255.5,0.69993336]
[1672920397090,36.33134851,1255.6,1255.5,0.69993336]
[1672920402855,31.33134851,1255.6,1255.5,0.69993336]
[1672920403662,36.33134851,1255.6,1255.5,0.69993336]
[1672920403873,8.449269,1255.6,1255.5,0.69993336]
[1672920404084,5.234,1255.6,1255.5,0.69993336]
[1672920406639,5.234,1255.6,1255.5,0.6963095]
[1672920407479,5.23097821,1255.6,1255.5,0.6963095]
[1672920408486,21.15959821,1255.6,1255.5,0.6963095]
[1672920410335,29.12390821,1255.6,1255.5,0.6963095]
[1672920410534,32.83887703,1255.6,1255.5,0.6963095]
[1672920411134,27.83887703,1255.6,1255.5,0.6963095]
[1672920411327,24.12390821,1255.6,1255.5,0.6963095]
[1672920411546,8.19528821,1255.6,1255.5,0.6963095]
[1672920412544,16.15959821,1255.6,1255.5,0.6963095]
[1672920412733,21.15959821,1255.6,1255.5,0.6963095]
[1672920414496,16.15959821,1255.6,1255.5,0.6963095]
[1672920415063,8.19528821,1255.6,1255.5,0.6963095]
[1672920416107,0.23097821,1255.6,1255.5,0.6963095]
[1672920416296,0.22697821,1255.6,1255.5,0.6963095]
[1672920417893,8.19128821,1255.6,1255.5,0.6963095]
[1672920418124,8.19528821,1255.6,1255.5,0.6963095]
[1672920418473,0.23097821,1255.6,1255.5,0.6963095]
[1672920418858,0.22697821,1255.6,1255.5,0.6963095]
[1672920419734,0.22897821,1255.6,1255.5,0.6963095]
[1672920419943,0.22697821,1255.6,1255.5,0.6963095]
[1672920422357,0.22697821,1255.6,1255.5,8.6612595]
[1672920422577,0.22697821,1255.6,1255.5,8.70344875]
[1672920423144,0.22697821,1255.6,1255.5,0.73849875]
[1672920423397,0.22697821,1255.6,1255.5,0.6963095]
[1672920425718,0.27697821,1255.6,1255.5,0.6963095]
[1672920425936,0.22697821,1255.6,1255.5,0.6963095]
[1672920426722,1.53897821,1255.6,1255.5,0.6963095]
[1672920426924,27.18517003,1255.6,1255.5,0.6963095]
[1672920427153,27.18917003,1255.6,1255.5,0.6963095]
[1672920427455,32.18917003,1255.6,1255.5,0.6963095]
[1672920427918,32.18917003,1255.6,1255.5,0.6927308]
[1672920433555,35.18917003,1255.6,1255.5,0.6927308]
[1672920439253,30.18917003,1255.6,1255.5,0.6927308]
[1672920440312,35.18917003,1255.6,1255.5,0.6927308]
[1672920442998,19.26055003,1255.6,1255.5,0.6927308]
[1672920443165,27.22486003,1255.6,1255.5,0.6927308]
[1672920443351,35.18917003,1255.6,1255.5,0.6927308]
[1672920444916,27.22486003,1255.6,1255.5,0.6927308]
[1672920445258,35.18917003,1255.6,1255.5,0.6927308]
[1672920452811,35.18917003,1255.6,1255.5,0.69001993]
[1672920453273,30.18917003,1255.6,1255.5,0.69001993]
[1672920454184,35.18917003,1255.6,1255.5,0.69001993]
[1672920456491,39.17831954,1255.6,1255.5,0.69001993]
[1672920457862,42.82321582,1255.6,1255.5,0.69001993]
[1672920458107,43.42101582,1255.6,1255.5,0.69001993]
[1672920463219,39.77811954,1255.6,1255.5,0.69001993]
[1672920463431,39.77611954,1255.6,1255.5,0.69001993]
[1672920465158,43.41857859,1255.6,1255.5,0.69001993]
[1672920465371,39.77611954,1255.6,1255.5,0.69001993]
[1672920467100,34.77611954,1255.6,1255.5,0.69001993]
[1672920467975,39.77611954,1255.6,1255.5,0.69001993]
[1672920473414,43.4203071,1255.6,1255.5,0.69001993]
[1672920474140,38.4203071,1255.6,1255.5,0.69001993]
[1672920475163,43.4203071,1255.6,1255.5,0.69001993]
[1672920475504,43.41821736,1255.6,1255.5,0.69001993]
[1672920475718,42.82041736,1255.6,1255.5,0.69001993]
[1672920476072,42.82041591,1255.6,1255.5,0.69001993]
[1672920476824,42.82041591,1255.6,1255.5,0.68680677]
[1672920480251,39.17831954,1255.6,1255.5,0.68680677]
[1672920480386,42.81900897,1255.6,1255.5,0.68680677]
[1672920480597,39.17831954,1255.6,1255.5,0.68680677]
[1672920481063,34.17831954,1255.6,1255.5,0.68680677]
[1672920481216,37.8190088,1255.6,1255.5,0.68680677]
[1672920482436,42.8190088,1255.6,1255.5,0.68680677]
[1672920483294,39.17831954,1255.6,1255.5,0.68680677]
[1672920483455,42.81829622,1255.6,1255.5,0.68680677]
[1672920484557,39.17831954,1255.6,1255.5,0.68680677]
[1672920484803,42.81829516,1255.6,1255.5,0.68680677]
[1672920487347,42.81829516,1255.6,1255.5,6.77e-06]
[1672920487722,50.86759516,1255.6,1255.5,6.77e-06]
[1672920489596,50.86959516,1255.6,1255.5,6.77e-06]
[1672920489813,50.86759516,1255.6,1255.5,6.77e-06]
[1672920491439,52.10259516,1255.6,1255.2,8.27322795]
[1672920491645,3.5,1255.4,1255.2,8.27322795]
[1672920491915,20.15158951,1255.3,1255.2,8.27322795]
[1672920492065,20.15558951,1255.3,1255.2,8.27322795]
[1672920492270,12.18936951,1255.3,1255.2,8.27322795]
[1672920492485,12.18936951,1255.3,1255.2,0.71682795]
[1672920492696,5.234,1255.3,1255.2,0.6746387]
[1672920496077,13.20022,1255.3,1255.2,0.6746387]
[1672920496731,21.16644,1255.3,1255.2,0.6746387]
[1672920496941,13.20022,1255.3,1255.2,0.6746387]
[1672920498428,21.16644,1255.3,1255.2,0.6746387]
[1672920498638,13.20022,1255.3,1255.2,0.6746387]
[1672920498790,13.20222,1255.3,1255.2,0.6746387]
[1672920499003,13.20022,1255.3,1255.2,0.6746387]
[1672920499583,21.16644,1255.3,1255.2,0.6746387]
[1672920500428,13.20022,1255.3,1255.2,0.6746387]
[1672920500576,5.234,1255.3,1255.2,0.6746387]
[1672920501349,13.20022,1255.3,1255.2,0.6746387]
[1672920501979,5.234,1255.3,1255.2,0.6746387]
[1672920502189,0.234,1255.3,1255.2,0.6746387]
[1672920502400,0.23,1255.3,1255.2,0.6746387]
[1672920502719,8.19622,1255.3,1255.2,0.6746387]
[1672920502964,8.20022,1255.3,1255.2,0.6746387]
[1672920503388,13.20022,1255.3,1255.2,0.6746387]
[1672920503997,21.16644,1255.3,1255.2,0.6746387]
[1672920504748,13.20022,1255.3,1255.2,0.6746387]
[1672920509296,8.20022,1255.3,1255.2,0.6746387]
[1672920510294,13.20022,1255.3,1255.2,0.6746387]
[1672920510911,13.20222,1255.3,1255.2,0.6724339]
[1672920511122,13.20022,1255.3,1255.2,0.6724339]
[1672920511545,21.16644,1255.3,1255.2,0.6724339]
[1672920511966,13.20022,1255.3,1255.2,0.6724339]
[1672920512401,21.16644,1255.3,1255.2,0.6724339]
[1672920515066,5.234,1255.3,1255.2,0.6724339]
[1672920515455,13.20022,1255.3,1255.2,0.6724339]
[1672920516119,5.234,1255.3,1255.2,0.6724339]
[1672920516273,0.234,1255.3,1255.2,0.6724339]
[1672920516483,0.23,1255.3,1255.2,0.6724339]
[1672920517326,5.23,1255.3,1255.2,0.6724339]
[1672920517546,5.234,1255.3,1255.2,0.6724339]
[1672920518603,5.234,1255.3,1255.2,8.6392839]
[1672920518815,5.234,1255.3,1255.2,0.71462315]
[1672920519042,5.234,1255.3,1255.2,0.6724339]
[1672920523492,0.234,1255.3,1255.2,0.6724339]
[1672920523656,0.23,1255.3,1255.2,0.6724339]
[1672920523871,0.23,1255.3,1255.2,16.6061339]
[1672920524095,0.28,1255.4,1255.2,16.64832315]
[1672920524305,0.28,1255.4,1255.2,8.68147315]
[1672920524520,0.23,1255.4,1255.2,8.68147315]
[1672920524962,0.23,1255.4,1255.2,0.71462315]
[1672920524963,8.19574,1255.4,1255.2,0.71462315]
[1672920525177,16.16548,1255.4,1255.2,0.6724339]
[1672920525530,24.13122,1255.4,1255.2,0.6724339]
[1672920525969,8.19974,1255.4,1255.2,0.6724339]
[1672920526376,8.24974,1255.4,1255.2,0.6724339]
[1672920526729,8.24630695,1255.4,1255.2,0.6724339]
[1672920527275,16.21188695,1255.4,1255.2,0.6724339]
[1672920528644,16.16188695,1255.4,1255.2,0.6724339]
[1672920530308,16.16172695,1255.4,1255.2,0.6724339]
[1672920530475,16.21172695,1255.4,1255.2,0.6724339]
[1672920531285,8.24614695,1255.4,1255.2,0.6724339]
[1672920532596,8.19614695,1255.4,1255.2,0.6724339]
[1672920532810,16.16172695,1255.4,1255.2,0.6724339]
[1672920534584,16.21172695,1255.4,1255.2,0.6724339]
[1672920534793,18.95201965,1255.4,1255.2,0.6724339]
[1672920535252,26.91759965,1255.4,1255.2,0.6724339]
[1672920536747,20.93244,1255.3,1255.2,0.6724339]
[1672920536963,21.16644,1255.3,1255.2,0.6724339]
[1672920538324,29.13266,1255.3,1255.2,0.6724339]
[1672920545538,31.64489491,1255.3,1255.2,0.6724339]
[1672920546833,35.63404442,1255.3,1255.2,0.6724339]
[1672920547065,36.23194442,1255.3,1255.2,0.6724339]
[1672920547987,31.23194442,1255.3,1255.2,0.6724339]
[1672920548949,36.23194442,1255.3,1255.2,0.6724339]
[1672920550868,36.23194442,1255.3,1255.2,0.66862621]
[1672920551873,35.63404442,1255.3,1255.2,0.66862621]
[1672920567217,30.63404442,1255.3,1255.2,0.66862621]
[1672920568204,35.63404442,1255.3,1255.2,0.66862621]
[1672920571017,35.63404442,1255.3,1255.2,0.66584622]
[1672920575202,39.25623937,1255.3,1255.2,0.66584622]
[1672920575419,3.5,1255.2,1255.1,0.06652483]
[1672920575775,42.90007591,1255.2,1255.1,0.06652483]
[1672920575958,42.90407591,1255.2,1255.1,0.06652483]
[1672920577341,39.29614599,1255.2,1255.1,0.06652483]
[1672920578291,42.89885841,1255.2,1255.1,0.06652483]
[1672920580583,39.29614599,1255.2,1255.1,0.00052483]
[1672920580932,43.4019075,1255.2,1255.1,0.00052483]
[1672920583215,3.5,1255.1,1255.0,4.7e-07]
[1672920583424,19.45658668,1255.1,1254.9,0.00922564]
[1672920583672,36.09162951,1255.0,1254.9,0.00922564]
[1672920583833,36.14562951,1255.0,1254.9,0.00922564]
[1672920584045,36.09562951,1255.0,1254.9,0.00922564]
[1672920584253,38.17007599,1255.0,1254.9,0.00922564]
[1672920584485,43.17007599,1255.0,1254.9,0.00922564]
[1672920585111,43.16731716,1255.0,1254.9,0.00922564]
[1672920585461,35.79729716,1255.0,1254.9,0.00922564]
[1672920585676,9.59124951,1255.0,1254.9,0.00922564]
[1672920585890,8.99314951,1255.0,1254.9,0.00922564]
[1672920586035,16.96126951,1255.0,1254.9,0.00922564]
[1672920586456,8.99314951,1255.0,1254.9,0.00922564]
[1672920586719,16.96126951,1255.0,1254.9,0.00922564]
[1672920586937,32.89750951,1255.0,1254.9,0.00922564]
[1672920587314,33.12750951,1255.0,1254.9,0.00922564]
[1672920593395,28.12750951,1255.0,1254.9,0.00922564]
[1672920593828,15.93796,1254.9,1254.7,0.02834453]
[1672920594038,15.94196,1254.9,1254.7,0.02834453]
[1672920595337,7.97283,1254.9,1254.7,0.02834453]
[1672920597617,0.004,1254.9,1254.7,7.99826453]
[1672920597959,5.23,1254.9,1254.7,8.04045378]
[1672920598123,5.234,1254.9,1254.7,14.55545279]
[1672920598332,5.234,1254.9,1254.7,6.58553279]
[1672920598333,13.20283,1254.9,1254.7,6.58553279]
[1672920600434,8.20283,1254.9,1254.7,6.58553279]
[1672920601322,8.20283,1254.9,1254.7,0.07053378]
[1672920601541,28.12956951,1254.9,1254.7,0.02834453]
[1672920602875,5.0,1254.8,1254.7,0.02834453]
[1672920603075,29.14217,1254.8,1254.7,0.02834453]
[1672920603606,29.14217,1254.8,1254.6,8.15848014]
[1672920603839,0.23,1254.7,1254.6,8.15848014]
[1672920604046,0.23,1254.7,1254.6,13.31729667]
[1672920604715,0.23,1254.7,1254.6,5.20100578]
[1672920606527,16.17006,1254.7,1254.6,5.20100578]
[1672920606703,0.234,1254.7,1254.6,5.20100578]
[1672920606896,0.23,1254.7,1254.6,5.20100578]
[1672920608910,16.0051,1254.8,1254.6,5.20100578]
[1672920609102,15.9431,1254.8,1254.6,5.20100578]
[1672920610751,23.91281,1254.8,1254.6,5.20100578]
[1672920610877,23.91281,1254.8,1254.6,3.04218925]
[1672920611075,15.9431,1254.8,1254.6,3.0]
[1672920617876,7.97339,1254.8,1254.6,3.0]
[1672920618462,15.94278,1254.8,1254.6,3.0]
[1672920619101,0.004,1254.8,1254.6,10.97063]
[1672920619358,0.23,1254.8,1254.6,11.01281925]
[1672920620274,8.1994,1254.8,1254.6,11.01281925]
[1672920620486,0.234,1254.8,1254.6,30.69259569]
[1672920620690,8.1534,1254.9,1254.6,30.69259569]
[1672920620931,8.0914,1254.9,1254.6,30.69259569]
[1672920622286,8.0914,1254.9,1254.7,3.5]
[1672920622477,16.0602,1254.9,1254.7,7.28163237]
[1672920622693,24.029,1254.9,1254.7,3.82382162]
[1672920623038,24.029,1254.9,1254.7,3.78163237]
[1672920623258,16.0602,1254.9,1254.6,22.72145569]
[1672920623616,16.0602,1254.9,1254.6,30.69180569]
[1672920624086,8.0914,1254.9,1254.6,30.69180569]
[1672920627724,8.0914,1254.9,1254.6,30.68783918]
[1672920628300,3.98914951,1254.8,1254.6,0.04218925]
[1672920628512,8.0914,1254.9,1254.5,0.73818516]
[1672920628513,5.8282,1254.7,1254.5,0.73818516]
[1672920628683,5.004,1254.7,1254.5,8.70893516]
[1672920628892,5.004,1254.7,1254.5,9.62201793]
[1672920630570,5.004,1254.7,1254.6,3.5]
[1672920631945,5.004,1254.7,1254.5,9.62201793]
[1672920631946,5.004,1254.7,1254.5,17.59295793]
[1672920634519,5.004,1254.7,1254.5,25.56425793]
[1672920637011,0.004,1254.7,1254.5,25.56425793]
[1672920637211,8.57161,1254.8,1254.5,25.56425793]
[1672920638142,5.0,1254.7,1254.5,25.56425793]
[1672920638351,5.004,1254.7,1254.5,25.56425793]
[1672920638773,5.004,1254.7,1254.5,32.15879604]
[1672920639101,5.004,1254.7,1254.6,27.41198]
[1672920639315,0.004,1254.7,1254.6,31.45440312]
[1672920639518,17.4714,1254.9,1254.6,27.95440312]
[1672920642906,0.004,1254.9,1254.6,35.57075489]
[1672920643138,16.53377,1255.1,1254.7,6.5]
[1672920643139,16.53777,1255.1,1254.7,6.5]
[1672920643290,16.53777,1255.1,1254.8,15.93865]
[1672920643616,5.0,1254.9,1254.8,15.98084925]
[1672920643831,5.004,1254.9,1254.8,23.95023925]
[1672920644465,0.004,1254.9,1254.8,23.95023925]
[1672920644672,5.004,1255.0,1254.8,8.01145925]
[1672920645095,5.004,1255.0,1254.8,15.98084925]
[1672920645329,5.004,1255.0,1254.8,8.01145925]
[1672920648682,5.004,1255.0,1254.8,15.98084925]
[1672920649596,5.004,1255.0,1254.8,8.01145925]
[1672920652240,5.004,1255.0,1254.8,15.98084925]
[1672920652536,5.004,1255.0,1254.8,15.97776973]
[1672920653414,5.004,1255.0,1254.8,8.00837973]
[1672920655206,5.004,1255.0,1254.8,15.97776973]
[1672920655915,0.004,1255.0,1254.8,15.97776973]
[1672920656132,16.53732,1255.1,1254.8,15.97776973]
[1672920656477,19.789492,1255.1,1254.8,15.97776973]
[1672920656726,19.789492,1255.1,1254.8,8.00837973]
[1672920656909,5.0,1255.0,1254.8,8.00837973]
[1672920657099,5.004,1255.0,1254.8,8.00837973]
[1672920659006,20.9403,1255.0,1254.8,0.04218925]
[1672920659248,22.27480939,1255.0,1254.7,26.95093925]
[1672920659819,14.30665939,1255.0,1254.7,26.95093925]
[1672920661506,6.33850939,1255.0,1254.7,26.95093925]
[1672920661674,5.004,1255.0,1254.7,26.95093925]
[1672920662998,0.004,1255.0,1254.7,26.95093925]
[1672920663151,24.50541,1255.1,1254.7,26.95093925]
[1672920663992,8.5,1255.0,1254.7,26.95093925]
[1672920664379,16.47218,1255.0,1254.7,26.95093925]
[1672920664543,19.778948,1255.0,1254.7,26.95093925]
[1672920664755,16.278948,1255.0,1254.7,26.95093925]
[1672920665472,8.310768,1255.0,1254.7,26.95093925]
[1672920666267,8.310768,1255.0,1254.7,3.04218925]
[1672920666268,16.278898,1255.0,1254.7,3.04218925]
[1672920666490,12.97213,1255.0,1254.7,18.93929]
[1672920666637,12.97213,1255.0,1254.7,18.98147925]
[1672920667580,12.97222,1255.0,1254.7,26.95122925]
[1672920668790,5.004,1255.0,1254.7,26.95122925]
[1672920669679,28.90842,1255.0,1254.7,3.04218925]
[1672920670050,28.90842,1255.0,1254.7,3.0]
[1672920670667,5.0,1254.9,1254.7,3.0]
[1672920670893,32.41122,1254.9,1254.7,3.0]
[1672920671205,28.91122,1254.9,1254.7,3.0]
[1672920671573,28.91122,1254.9,1254.8,0.72193593]
[1672920671783,16.666914,1254.9,1254.8,0.72193593]
[1672920672540,24.636284,1254.9,1254.8,0.72193593]
[1672920674952,16.666914,1254.9,1254.8,0.72193593]
[1672920676889,11.666914,1254.9,1254.8,0.72193593]
[1672920677031,11.666914,1254.9,1254.8,0.71931312]
[1672920677659,16.666914,1254.9,1254.8,0.71931312]
[1672920678091,8.698134,1254.9,1254.8,0.71931312]
[1672920682231,16.666894,1254.9,1254.8,0.71931312]
[1672920683853,11.666894,1254.9,1254.8,0.71931312]
[1672920684782,16.666894,1254.9,1254.8,0.71931312]
[1672920688354,24.635654,1254.9,1254.8,0.71931312]
[1672920690332,20.9399134,1254.9,1254.8,0.71931312]
[1672920690801,7.9711534,1254.9,1254.8,0.71931312]
[1672920691331,12.9711534,1254.9,1254.8,0.71931312]
[1672920697391,7.9711534,1254.9,1254.8,0.71931312]
[1672920698433,12.9711534,1254.9,1254.8,0.71931312]
[1672920699375,12.9731534,1254.9,1254.8,0.71931312]
[1672920699608,12.9711534,1254.9,1254.8,0.71931312]
[1672920702309,5.0023934,1254.9,1254.8,0.71931312]
[1672920703912,12.9711534,1254.9,1254.8,0.71931312]
[1672920709833,7.9711534,1254.9,1254.8,0.71931312]
[1672920710883,8.2011534,1254.9,1254.8,0.71931312]
[1672920712208,13.2011534,1254.9,1254.8,0.71931312]
[1672920712355,5.2323934,1254.9,1254.8,8.68870312]
[1672920712568,5.0023934,1254.9,1254.8,24.66967237]
[1672920713564,5.0023934,1254.9,1254.8,8.73089237]
[1672920714351,5.0023934,1254.9,1254.8,8.72744517]
[1672920714555,5.0023934,1254.9,1254.8,0.75805517]
[1672920714888,5.0023934,1254.9,1254.8,0.71586592]
[1672920715648,5.0023934,1254.9,1254.8,8.68525592]
[1672920715859,5.0023934,1254.9,1254.8,16.69683517]
[1672920716768,5.0023934,1254.9,1254.8,24.66622517]
[1672920716975,5.0023934,1254.9,1254.8,28.22981269]
[1672920717683,5.0023934,1254.9,1254.8,20.26042269]